bitfinex/quotes_SOLUSD_20251103
["timestamp","ask_amount","ask_price","bid_price","bid_amount"]
[1762178387980,4.51465145,176.07,176.02,0.5]
[1762178388179,8.07374481,176.06,176.02,0.5]
[1762178388379,0.69,176.08,176.02,8.57431946]
[1762178388573,8.0733916,176.07,176.02,8.57431946]
[1762178388775,8.0733916,176.06,176.03,1.82125829]
[1762178388957,0.69,176.07,176.04,5.68052715]
[1762178389158,8.07338678,176.06,176.04,5.68052715]
[1762178389481,0.69,176.08,176.04,5.68052715]
[1762178389667,8.76357691,176.07,176.04,5.68052715]
[1762178389868,8.07357691,176.06,176.04,5.68052715]
[1762178390064,0.69,176.06,176.04,5.68052715]
[1762178390263,0.69,176.09,176.04,8.00178544]
[1762178390570,8.76353646,176.08,176.05,1.82125829]
[1762178390768,8.07353646,176.07,176.04,5.68052715]
[1762178390955,4.24924936,176.06,176.05,7.50146277]
[1762178391384,0.69,176.07,176.05,7.50146277]
[1762178391568,4.24934367,176.06,176.05,5.68020448]
[1762178392881,0.69,176.09,176.05,7.50146277]
[1762178393079,8.07405511,176.08,176.05,7.50146277]
[1762178393286,5.67797366,176.12,176.06,1.82125829]
[1762178393466,8.76425399,176.11,176.06,2.32125829]
[1762178393670,8.07425399,176.1,176.06,1.82125829]
[1762178393897,8.07425399,176.09,176.06,1.82125829]
[1762178394061,4.24959599,176.08,176.06,1.82125829]
[1762178394382,0.69,176.09,176.06,1.82125829]
[1762178394684,8.07502181,176.08,176.06,5.67981869]
[1762178394978,8.07507127,176.07,176.04,24.57943505]
[1762178395184,8.07652965,176.06,176.04,5.68021587]
[1762178395379,0.69,176.08,176.04,5.68021587]
[1762178395584,8.76729304,176.07,176.04,5.68021587]
[1762178395783,8.07729304,176.06,176.04,5.68021587]
[1762178395980,0.69,176.06,176.04,5.68021587]
[1762178396157,0.69,176.06,176.03,19.88290606]
[1762178396358,0.69,176.06,176.03,21.70416435]
[1762178397162,4.25313124,176.05,176.03,19.88290606]
[1762178397390,0.69,176.06,176.03,19.88290606]
[1762178397665,4.25313203,176.05,176.03,19.88290606]
[1762178397864,0.69,176.08,176.04,2.32125829]
[1762178398064,8.08082465,176.07,176.04,2.32125829]
[1762178398277,8.08082465,176.06,176.04,2.32125829]
[1762178398477,1.82125829,176.1,176.04,2.32125829]
[1762178398660,8.08096669,176.09,176.06,1.82125829]
[1762178398865,8.08096669,176.08,176.06,1.82125829]
[1762178399061,0.69,176.11,176.07,1.82125829]
[1762178399266,6.60726715,176.13,176.08,2.32125829]
[1762178399267,8.07992007,176.1,176.08,2.32125829]
[1762178399476,8.07950123,176.09,176.08,2.32125829]
[1762178399899,0.69,176.14,176.08,8.000495]
[1762178400085,8.76883912,176.13,176.08,21.69858677]
[1762178400275,8.07883912,176.12,176.08,38.77265979]
[1762178400469,4.25198763,176.11,176.09,0.5]
[1762178400676,5.47600886,176.22,176.11,30.52298926]
[1762178400874,8.07577039,176.21,176.18,1.82125829]
[1762178401184,12.23677251,176.24,176.19,0.5]
[1762178401185,8.07577039,176.2,176.19,0.5]
[1762178401385,3.81833599,176.23,176.19,0.5]
[1762178401567,4.24395762,176.22,176.19,10.43098926]
[1762178401890,0.2,176.24,176.21,19.86266385]
[1762178402100,0.2,176.24,176.22,0.5]
[1762178402292,0.2,176.24,176.23,1.82125829]
[1762178402475,1e-08,176.24,176.23,32.34424755]
[1762178402678,0.2,176.27,176.26,20.592]
[1762178402876,0.2,176.27,176.26,22.41325829]
[1762178403070,0.2,176.27,176.26,32.84424755]
[1762178403395,0.2,176.31,176.3,20.592]
[1762178403707,0.2,176.37,176.31,9.93098926]
[1762178404005,0.2,176.37,176.34,1.82125829]
[1762178404305,2.51125829,176.36,176.32,7.4895186]
[1762178404487,2.51125829,176.36,176.3,7.49340803]
[1762178404690,2.51125829,176.36,176.3,11.30429198]
[1762178405192,0.2,176.37,176.34,1.82125829]
[1762178405398,0.2,176.37,176.36,1.82125829]
[1762178405607,0.2,176.37,176.35,1.82125829]
[1762178405904,0.2,176.37,176.34,1.82125829]
[1762178406078,0.2,176.37,176.35,1.82125829]
[1762178406403,0.2,176.37,176.36,1.82125829]
[1762178406783,0.89,176.37,176.33,1.82125829]
[1762178407089,0.2,176.37,176.36,1.82125829]
[1762178407283,0.2,176.37,176.36,22.91325829]
[1762178407694,0.2,176.37,176.36,32.84424755]
[1762178407876,0.2,176.37,176.36,38.51446755]
[1762178408083,0.69,176.44,176.37,0.14216157]
[1762178408280,0.69,176.44,176.43,1.82125829]
[1762178408494,1e-08,176.45,176.43,1.82125829]
[1762178408699,0.69000001,176.45,176.41,1.82125829]
[1762178408898,0.69000001,176.45,176.39,0.5]
[1762178408899,0.69000001,176.45,176.39,22.41325829]
[1762178409105,2.5112583,176.45,176.39,22.41325829]
[1762178409284,0.69000001,176.45,176.4,1.82125829]
[1762178409487,0.69,176.44,176.36,5.67022]
[1762178409681,1.82125829,176.42,176.36,2.32125829]
[1762178410098,1.82125829,176.43,176.37,2.32125829]
[1762178410289,1.82125829,176.41,176.35,5.67051067]
[1762178410488,10.13278547,176.44,176.38,4.46510882]
[1762178410706,10.13278547,176.44,176.35,6.17051067]
[1762178410707,4.46510882,176.39,176.3,18.49068008]
[1762178410881,4.46510882,176.38,176.31,20.3513981]
[1762178411082,0.69,176.42,176.37,4.46510882]
[1762178411304,4.46510882,176.41,176.35,25.05710882]
[1762178411605,5.15510882,176.42,176.36,4.46510882]
[1762178411983,0.69,176.42,176.38,4.46510882]
[1762178412188,0.69,176.41,176.38,10.13456813]
[1762178412704,5.15510882,176.41,176.23,1.99999999]
[1762178412914,4.46510882,176.38,176.29,9.78882769]
[1762178413205,0.71,176.39,176.34,4.46510882]
[1762178413407,0.71,176.39,176.37,4.46510882]
[1762178413578,0.71,176.39,176.38,4.46510882]
[1762178414085,0.71,176.39,176.38,10.13468586]
[1762178414284,0.71,176.41,176.38,10.13468586]
[1762178414593,4.6072704,176.45,176.41,20.592]
[1762178414594,1e-08,176.45,176.41,20.592]
[1762178414796,1e-08,176.45,176.44,4.46510882]
[1762178416206,1e-08,176.45,176.44,10.13275787]
[1762178416524,1e-08,176.45,176.44,10.63275787]
[1762178416694,1e-08,176.45,176.44,20.56374713]
[1762178417183,1e-08,176.45,176.44,41.15574713]
[1762178417382,0.2,176.48,176.47,20.73416157]
[1762178417586,0.71,176.59,176.51,20.592]
[1762178417801,0.2,176.6,176.57,4.46510882]
[1762178418002,0.91,176.6,176.56,4.46510882]
[1762178418201,0.91,176.6,176.56,10.12888967]
[1762178418487,0.91,176.6,176.57,4.46510882]
[1762178418685,0.91,176.6,176.56,6.73557852]
[1762178418929,0.71,176.57,176.49,0.70876591]
[1762178419132,0.71,176.57,176.52,2.27098532]
[1762178419294,0.91,176.6,176.56,4.46510882]
[1762178419487,0.91,176.6,176.57,4.46510882]
[1762178419682,0.71000001,176.58,176.52,23.36298532]
[1762178419908,0.71000001,176.58,176.52,22.86298532]
[1762178420108,0.71000001,176.58,176.53,4.46510882]
[1762178420290,0.71000001,176.58,176.53,10.12976417]
[1762178420494,0.71000001,176.58,176.55,4.46510882]
[1762178420708,0.71000001,176.58,176.56,4.46510882]
[1762178421191,5.17510882,176.57,176.52,2.27098532]
[1762178421387,0.71,176.56,176.51,10.1304851]
[1762178421589,0.71000001,176.58,176.51,15.79371446]
[1762178421801,5.17510883,176.58,176.51,15.79371446]
[1762178422004,4.46510882,176.57,176.51,15.79371446]
[1762178422189,4.46510882,176.56,176.51,11.32860564]
[1762178422612,5.17510882,176.56,176.51,5.66537628]
[1762178422805,1e-08,176.58,176.51,31.16754505]
[1762178423011,0.71,176.56,176.51,12.03893275]
[1762178423303,4.46510882,176.55,176.51,6.37355647]
[1762178423511,5.17510882,176.56,176.51,12.03893832]
[1762178423694,5.17510882,176.56,176.5,10.13077265]
[1762178424087,4.46510882,176.56,176.5,22.16971097]
[1762178424396,5.17510882,176.55,176.5,17.70460215]
[1762178424691,5.17510882,176.55,176.49,18.63018241]
[1762178424692,4.46510882,176.53,176.45,6.16732785]
[1762178424892,84.75019906,176.58,176.45,6.16732785]
[1762178424893,0.71,176.54,176.51,4.46510882]
[1762178425299,0.71,176.57,176.53,4.46510882]
[1762178425609,1e-08,176.58,176.56,4.46510882]
[1762178425807,1e-08,176.58,176.57,4.46510882]
[1762178426291,1e-08,176.58,176.57,10.12858506]
[1762178427012,1e-08,176.58,176.54,19.12563629]
[1762178427013,0.70000001,176.58,176.54,30.72140665]
[1762178427434,0.70000001,176.58,176.54,35.18651547]
[1762178428021,0.70000001,176.58,176.55,4.46510882]
[1762178428224,0.70000001,176.58,176.54,14.59451547]
[1762178428410,0.70000001,176.58,176.53,20.592]
[1762178428593,5.16510883,176.58,176.52,10.13014838]
[1762178428790,5.16510883,176.58,176.52,28.95795831]
[1762178428996,0.70000001,176.58,176.52,24.49284949]
[1762178429189,0.70000001,176.58,176.54,4.46510882]
[1762178429815,0.70000001,176.58,176.53,8.93021764]
[1762178430012,5.16510883,176.58,176.52,24.29284949]
[1762178430414,5.16510883,176.58,176.52,28.75795831]
[1762178430921,0.7,176.57,176.52,14.5952572]
[1762178431305,5.16510882,176.57,176.52,5.66503956]
[1762178431709,5.16510882,176.56,176.51,15.79342494]
[1762178431912,4.46510882,176.54,176.51,5.66514796]
[1762178432111,5.16510882,176.55,176.51,5.66514796]
[1762178432320,4.46510882,176.55,176.49,24.29262005]
[1762178432519,4.46510882,176.55,176.5,5.66572237]
[1762178432823,5.16510882,176.54,176.49,5.66599568]
[1762178433205,14.15863459,176.58,176.48,5.66404264]
[1762178433206,4.46510882,176.51,176.48,5.66404264]
[1762178433522,5.6642166,176.55,176.47,5.66638504]
[1762178433523,0.7,176.5,176.47,5.66638504]
[1762178433727,0.7,176.53,176.49,4.46510882]
[1762178433925,0.7,176.53,176.51,4.46510882]
[1762178434129,0.7,176.53,176.5,4.46510882]
[1762178434503,0.7,176.53,176.49,4.46510882]
[1762178435726,0.7,176.53,176.47,19.83309892]
[1762178435906,0.7,176.53,176.48,4.46510882]
[1762178436105,4.46510882,176.56,176.5,4.46510882]
[1762178436427,0.7,176.55,176.5,4.46510882]
[1762178436626,0.7,176.55,176.51,5.66540139]
[1762178437036,4.46510882,176.52,176.44,14.1691073]
[1762178437208,4.46510882,176.46,176.36,0.5]
[1762178437526,5.16510882,176.45,176.39,4.46510882]
[1762178437716,0.7,176.45,176.4,25.05710882]
[1762178437922,0.7,176.45,176.4,25.55710882]
[1762178438107,0.7,176.48,176.42,4.46510882]
[1762178438306,9.93098926,176.51,176.46,4.46510882]
[1762178438307,0.7,176.51,176.46,4.46510882]
[1762178438501,0.7,176.5,176.47,4.46510882]
[1762178438727,4.46510882,176.48,176.43,5.66797029]
[1762178438917,0.7,176.5,176.45,4.46510882]
[1762178439432,0.7,176.5,176.46,4.46510882]
[1762178439616,0.7,176.5,176.47,4.46510882]
[1762178439810,0.7,176.5,176.46,20.592]
[1762178440022,0.7,176.5,176.47,4.46510882]
[1762178440210,0.7,176.5,176.46,25.05710882]
[1762178440631,4.46510882,176.48,176.44,20.592]
[1762178440926,4.46510882,176.49,176.44,20.592]
[1762178441128,0.7,176.49,176.44,25.05710882]
[1762178441830,4.46510882,176.46,176.41,5.66861289]
[1762178442033,4.46510882,176.44,176.41,5.66861289]
[1762178442421,5.16510882,176.44,176.41,5.66861289]
[1762178442618,5.16510882,176.44,176.35,9.78882769]
[1762178442619,4.46510882,176.42,176.35,4.46510882]
[1762178442817,4.46510882,176.41,176.36,19.84577001]
[1762178443018,20.592,176.45,176.37,4.46510882]
[1762178443335,4.46510882,176.42,176.36,15.80554882]
[1762178443530,4.46510882,176.42,176.36,11.34044]
[1762178443836,5.13510882,176.42,176.37,4.46510882]
[1762178444141,0.67,176.42,176.37,4.46510882]
[1762178444313,0.67,176.42,176.37,6.57676543]
[1762178444516,0.67,176.44,176.39,6.57676543]
[1762178444721,3.77079622,176.43,176.4,5.66893424]
[1762178444963,0.67,176.44,176.4,5.66893424]
[1762178445234,4.44079397,176.43,176.4,5.66893424]
[1762178445440,0.67,176.43,176.4,5.66893424]
[1762178445823,3.77146864,176.42,176.4,5.66893424]
[1762178446029,0.67,176.43,176.39,12.24602]
[1762178446340,4.44212139,176.42,176.39,5.66925457]
[1762178446520,3.77212139,176.41,176.39,5.66925457]
[1762178446714,11.87485516,176.45,176.39,26.41915906]
[1762178446948,3.7771698,176.44,176.4,6.57676543]
[1762178447148,3.7771698,176.43,176.4,6.57676543]
[1762178447330,3.7771698,176.42,176.4,6.57676543]
[1762178447516,3.7771698,176.41,176.4,0.5]
[1762178447717,0.67,176.45,176.39,19.84239363]
[1762178447931,3.78138718,176.44,176.41,4.62808973]
[1762178448244,3.78138718,176.43,176.38,5.66952745]
[1762178448453,7.98802929,176.42,176.38,5.66952745]
[1762178448617,3.78138718,176.41,176.38,5.66952745]
[1762178448825,11.20485516,176.43,176.38,5.66952745]
[1762178448826,3.78138718,176.4,176.38,5.66952745]
[1762178449025,3.78138718,176.39,176.37,26.26187797]
[1762178449323,3.78138718,176.38,176.37,26.26187797]
[1762178449642,0.67,176.42,176.37,47.01338967]
[1762178449844,3.78657094,176.41,176.38,6.57676543]
[1762178450147,3.78657094,176.4,176.39,6.57676543]
[1762178450323,3.78657094,176.4,176.38,6.57676543]
[1762178450526,3.78657094,176.39,176.38,6.57676543]
[1762178450836,3.78657094,176.39,176.38,12.24634247]
[1762178452645,3.79315461,176.39,176.38,26.42028509]
[1762178453244,0.67,176.42,176.38,26.42028509]
[1762178453547,3.79349015,176.41,176.38,26.42028509]
[1762178453749,3.79349015,176.4,176.38,26.42028509]
[1762178453946,3.79349015,176.39,176.37,5.66987857]
[1762178454144,7.24676543,176.41,176.37,5.66987857]
[1762178454349,4.4642376,176.4,176.37,5.66987857]
[1762178454549,4.62808973,176.44,176.37,5.66987857]
[1762178454550,0.67,176.42,176.38,6.57676543]
[1762178454750,3.79406344,176.41,176.39,5.66925562]
[1762178454948,3.79406344,176.4,176.39,5.66925562]
[1762178455149,0.67,176.41,176.39,5.66925562]
[1762178455749,0.67,176.41,176.39,12.24602105]
[1762178456351,0.67,176.41,176.39,5.66925562]
[1762178456551,0.67,176.45,176.4,6.57676543]
[1762178456753,0.67,176.45,176.43,6.57676543]
[1762178456754,3.79534739,176.44,176.43,6.57676543]
[1762178457139,4.46534739,176.44,176.43,6.57676543]
[1762178457453,0.67,176.44,176.42,6.57676543]
[1762178458157,0.67,176.44,176.41,20.74773949]
[1762178458541,0.67,176.44,176.42,6.57676543]
[1762178459233,0.67,176.44,176.39,19.84239468]
[1762178459441,0.67,176.44,176.4,6.57676543]
[1762178459842,0.67,176.44,176.41,6.57676543]
[1762178460447,0.67,176.44,176.42,6.57676543]
[1762178460745,0.67,176.44,176.41,6.57676543]
[1762178460934,6.33771277,176.44,176.34,0.56708631]
[1762178461134,6.57676543,176.4,176.35,5.67054153]
[1762178461348,6.57676543,176.37,176.31,6.57676543]
[1762178461552,6.57676543,176.35,176.3,12.24891517]
[1762178461756,3.79947831,176.4,176.3,12.24891517]
[1762178461757,6.57676543,176.37,176.31,6.57676543]
[1762178462140,4.47011462,176.38,176.34,6.57676543]
[1762178462345,0.67,176.38,176.34,6.57676543]
[1762178462549,0.67,176.38,176.35,6.57676543]
[1762178462753,4.46773808,176.41,176.36,6.57676543]
[1762178462936,4.46773808,176.41,176.34,20.34773628]
[1762178462937,0.67,176.4,176.38,6.57676543]
[1762178463258,0.67,176.44,176.39,6.57676543]
[1762178463458,0.67,176.44,176.43,6.57676543]
[1762178464648,0.67,176.46,176.43,12.24473572]
[1762178464846,0.67,176.46,176.38,9.93098926]
[1762178465058,0.67,176.46,176.41,6.57676543]
[1762178465259,6.57676543,176.44,176.33,0.5]
[1762178465442,8.68529281,176.46,176.33,6.57676543]
[1762178465443,6.57676543,176.4,176.33,6.57676543]
[1762178465844,0.67,176.39,176.35,6.57676543]
[1762178466064,0.67,176.39,176.34,6.57676543]
[1762178466266,0.67,176.39,176.35,6.57676543]
[1762178466568,0.67,176.39,176.36,12.24695476]
[1762178466946,0.67,176.39,176.36,6.57676543]
[1762178467146,6.33928022,176.39,176.35,6.57676543]
[1762178467361,12.91604565,176.39,176.3,5.67214974]
[1762178467665,0.67,176.38,176.32,6.57676543]
[1762178467957,0.67,176.38,176.3,26.26414974]
[1762178467958,4.46726824,176.38,176.33,6.57676543]
[1762178468164,0.67,176.38,176.33,6.57676543]
[1762178468341,0.67,176.37,176.3,5.67214974]
[1762178468544,5.67022,176.36,176.33,6.57676543]
[1762178468748,0.67,176.37,176.34,6.57676543]
[1762178469071,20.592,176.4,176.36,6.57676543]
[1762178469360,20.592,176.4,176.29,20.592]
[1762178469361,0.67,176.37,176.29,20.592]
[1762178469571,0.67,176.37,176.29,6.57676543]
[1762178469572,6.57676543,176.36,176.29,6.57676543]
[1762178469872,4.46535672,176.37,176.33,6.57676543]
[1762178470052,0.67,176.38,176.35,6.57676543]
[1762178470568,6.33960738,176.38,176.35,6.57676543]
[1762178470759,0.67,176.38,176.35,6.57676543]
[1762178470958,0.67,176.4,176.37,6.57676543]
[1762178471769,6.33894831,176.4,176.37,6.57676543]
[1762178472260,0.67,176.39,176.36,6.57676543]
[1762178472773,6.33932562,176.39,176.33,12.24775958]
[1762178473155,0.72,176.38,176.33,12.24775958]
[1762178473470,0.72,176.38,176.32,12.24818478]
[1762178473675,4.51503114,176.38,176.32,12.24818478]
[1762178473849,0.72,176.38,176.32,12.24818478]
[1762178474050,0.72,176.37,176.32,12.24818478]
[1762178474260,0.72,176.37,176.34,6.57676543]
[1762178474470,0.72,176.37,176.32,5.67141935]
[1762178474471,0.72,176.37,176.35,6.57676543]
[1762178475175,0.72,176.37,176.34,6.57676543]
[1762178478051,6.38991313,176.37,176.34,6.57676543]
[1762178478291,10.37836765,176.36,176.3,6.57676543]
[1762178478579,14.60289947,176.35,176.25,0.5]
[1762178478786,26.42591191,176.33,176.27,6.57676543]
[1762178478983,8.02792574,176.32,176.26,6.57676543]
[1762178479175,3.8027109,176.31,176.26,6.57676543]
[1762178479366,0.72,176.31,176.26,6.57676543]
[1762178479567,21.312,176.37,176.3,6.57676543]
[1762178479799,3.80112328,176.36,176.3,0.14216157]
[1762178479976,9.47072673,176.38,176.35,6.57676543]
[1762178480175,3.80213969,176.37,176.34,6.57676543]
[1762178480397,0.72,176.37,176.34,6.57676543]
[1762178480596,0.72,176.36,176.34,6.57676543]
[1762178481396,0.72,176.39,176.35,6.57676543]
[1762178481684,3.80304638,176.38,176.37,6.57676543]
[1762178482061,4.52304638,176.38,176.37,6.57676543]
[1762178482261,0.72,176.38,176.37,6.57676543]
[1762178482504,4.52304638,176.38,176.37,6.57676543]
[1762178482691,3.80304638,176.38,176.37,12.24666393]
[1762178482894,10.29632031,176.43,176.37,12.24666393]
[1762178482895,3.80304638,176.42,176.37,12.24666393]
[1762178483076,8.02856066,176.41,176.39,6.57676543]
[1762178483272,5.34808973,176.45,176.4,6.57676543]
[1762178483481,3.80302886,176.44,176.43,6.57676543]
[1762178483669,0.72,176.45,176.43,6.57676543]
[1762178483873,0.72,176.45,176.38,0.5]
[1762178484068,4.94459681,176.45,176.44,6.57676543]
[1762178484274,8.74911193,176.45,176.43,6.57676543]
[1762178484481,0.72,176.45,176.42,6.57676543]
[1762178484678,8.74981769,176.44,176.36,5.67022]
[1762178484891,8.02981769,176.43,176.36,5.67022]
[1762178485098,59.93098926,176.49,176.36,5.67022]
[1762178485099,3.80453493,176.46,176.42,6.57676543]
[1762178485394,4.52407365,176.49,176.45,6.57676543]
[1762178485594,8.03041008,176.48,176.45,6.57676543]
[1762178485800,0.72,176.48,176.41,0.5]
[1762178486090,0.72,176.48,176.46,6.57676543]
[1762178486261,25.5382755,176.5,176.47,6.57676543]
[1762178486465,8.03030078,176.49,176.47,6.57676543]
[1762178486667,8.03060023,176.48,176.41,5.66861289]
[1762178486877,3.80402528,176.47,176.44,6.57676543]
[1762178487089,0.7,176.48,176.45,6.57676543]
[1762178487399,8.03067897,176.47,176.43,6.57676543]
[1762178487695,8.03067897,176.47,176.37,0.56698985]
[1762178487696,6.57676543,176.44,176.35,6.57676543]
[1762178487893,4.62808973,176.45,176.33,0.5]
[1762178487894,8.03067897,176.43,176.36,6.57676543]
[1762178488076,3.80403797,176.42,176.38,6.57676543]
[1762178488270,3.80403797,176.43,176.38,6.57676543]
[1762178488569,14.60890126,176.42,176.37,5.6698985]
[1762178488876,0.7,176.42,176.38,6.57676543]
[1762178489079,8.73359276,176.41,176.37,5.6698985]
[1762178489289,0.7,176.41,176.37,5.6698985]
[1762178489587,0.7,176.41,176.33,20.592]
[1762178489588,14.61052694,176.4,176.32,9.78882769]
[1762178489774,7.27676543,176.41,176.35,6.57676543]
[1762178490174,0.7,176.43,176.37,6.57676543]
[1762178490378,8.03439575,176.42,176.38,6.57676543]
[1762178490580,0.7,176.43,176.39,5.66925562]
[1762178490776,8.03383706,176.43,176.39,5.66925562]
[1762178490979,0.7,176.43,176.4,6.57676543]
[1762178491182,0.7,176.43,176.41,6.57676543]
[1762178491382,4.7566468,176.5,176.42,6.57676543]
[1762178491383,3.80531744,176.46,176.42,6.57676543]
[1762178491584,0.7,176.48,176.45,6.57676543]
[1762178491990,0.7,176.48,176.46,6.57676543]
[1762178492193,0.7,176.48,176.44,6.57676543]
[1762178492692,0.7,176.48,176.45,12.24409328]
[1762178493197,7.27676543,176.48,176.43,5.66791837]
[1762178493372,6.57676543,176.45,176.39,20.592]
[1762178493579,0.7,176.44,176.39,6.57676543]
[1762178493777,3.80368734,176.46,176.42,6.57676543]
[1762178493982,0.7,176.47,176.42,6.57676543]
[1762178494182,15.30657625,176.47,176.41,6.57676543]
[1762178494486,6.57676543,176.43,176.37,6.57676543]
[1762178494691,6.57676543,176.42,176.36,26.42253544]
[1762178494992,7.27676543,176.42,176.36,26.42253544]
[1762178495189,0.7,176.42,176.36,26.42253544]
[1762178495396,0.7,176.42,176.37,6.57676543]
[1762178495575,0.7,176.42,176.38,6.57676543]
[1762178495781,12.94443126,176.44,176.38,6.57676543]
[1762178495976,0.7,176.43,176.38,6.57676543]
[1762178496803,20.97738489,176.43,176.37,6.57676543]
[1762178497010,6.57676543,176.42,176.36,20.75231544]
[1762178497308,14.60994774,176.41,176.36,5.67013583]
[1762178497486,8.03410195,176.4,176.29,0.5]
[1762178497677,0.7,176.4,176.35,6.57676543]
[1762178497875,0.7,176.4,176.37,6.57676543]
[1762178498074,12.24474879,176.43,176.32,9.93098926]
[1762178498075,3.80557751,176.42,176.38,6.57676543]
[1762178498286,8.73427502,176.41,176.36,6.57676543]
[1762178498492,0.7,176.4,176.37,6.57676543]
[1762178498693,0.7,176.4,176.36,5.66990234]
[1762178498894,0.7,176.4,176.36,12.24666777]
[1762178499476,0.7,176.4,176.36,5.66990234]
[1762178499679,6.57676543,176.39,176.33,6.57676543]
[1762178499899,6.57676543,176.38,176.34,5.67080913]
[1762178500277,6.57676543,176.39,176.34,5.67080913]
[1762178500493,0.7,176.38,176.34,5.67080913]
[1762178501115,0.7,176.38,176.31,6.57676543]
[1762178501116,7.27676543,176.38,176.31,6.57676543]
[1762178501277,7.27676543,176.38,176.29,14.18041021]
[1762178501278,6.57676543,176.36,176.32,5.6714513]
[1762178501478,10.38371286,176.36,176.32,5.6714513]
[1762178501701,0.7,176.36,176.32,12.24821673]
[1762178502113,0.7,176.36,176.26,28.50870777]
[1762178502114,6.57676543,176.33,176.27,6.57676543]
[1762178502290,14.61349224,176.32,176.26,6.57676543]
[1762178502499,6.57676543,176.32,176.26,6.57676543]
[1762178502699,0.7,176.31,176.27,5.6731151]
[1762178502913,6.57676543,176.29,176.23,6.57676543]
[1762178503219,6.57676543,176.28,176.22,6.57676543]
[1762178503380,0.7,176.29,176.25,6.57676543]
[1762178503580,11.08441244,176.31,176.25,6.57676543]
[1762178503809,4.93039187,176.3,176.25,6.57676543]
[1762178504009,0.7,176.3,176.26,6.57676543]
[1762178504383,0.7,176.3,176.26,4.46982597]
[1762178504900,0.7,176.3,176.27,5.6731151]
[1762178506100,5.16982597,176.32,176.27,5.6731151]
[1762178506302,0.7,176.31,176.27,5.6731151]
[1762178507106,0.7,176.31,176.25,19.8574093]
[1762178508405,21.292,176.34,176.29,4.46982597]
[1762178508619,0.7,176.33,176.28,4.46982597]
[1762178508991,0.7,176.33,176.29,5.67247149]
[1762178509808,0.7,176.33,176.29,10.14229746]
[1762178511696,5.4566468,176.42,176.32,25.06182597]
[1762178511997,5.16982597,176.41,176.33,10.35594616]
[1762178512323,4.46982597,176.38,176.33,4.46982597]
[1762178512815,0.7,176.37,176.34,4.46982597]
[1762178513488,0.7,176.4,176.36,4.46982597]
[1762178513691,0.7,176.4,176.37,4.46982597]
[1762178515500,0.7,176.42,176.39,5.66925562]
[1762178516800,0.7,176.42,176.39,10.13908159]
[1762178516994,0.7,176.42,176.39,5.66925562]
[1762178518516,10.83820868,176.42,176.31,104.64216157]
[1762178518713,4.46982597,176.39,176.34,20.592]
[1762178518892,4.46982597,176.4,176.34,25.06182597]
[1762178519212,0.7,176.4,176.36,4.46982597]
[1762178519911,0.7,176.4,176.36,5.67013766]
[1762178520086,4.46982597,176.39,176.34,20.592]
[1762178520290,4.46982597,176.38,176.29,14.68100471]
[1762178520493,4.46982597,176.35,176.3,5.67201122]
[1762178520694,4.46982597,176.33,176.27,0.5]
[1762178520901,4.84184854,176.33,176.27,0.5]
[1762178521402,5.54184854,176.33,176.27,0.5]
[1762178521723,4.84184854,176.31,176.25,6.17353482]
[1762178521903,4.84184854,176.31,176.25,20.35793198]
[1762178522094,5.54184854,176.32,176.25,25.19978052]
[1762178522598,0.7,176.34,176.28,4.84184854]
[1762178522797,5.54184854,176.34,176.28,4.84184854]
[1762178522998,11.21272744,176.34,176.28,4.84184854]
[1762178523312,0.7,176.33,176.28,4.84184854]
[1762178524008,0.7,176.33,176.27,4.84184854]
[1762178524207,0.7,176.33,176.28,19.85477648]
[1762178524414,0.7,176.37,176.31,4.84184854]
[1762178524611,0.7,176.37,176.33,4.84184854]
[1762178525289,0.7,176.37,176.34,4.84184854]
[1762178525495,0.7,176.37,176.35,4.84184854]
[1762178525698,0.7,176.37,176.31,4.84184854]
[1762178526228,5.54184854,176.37,176.28,69.31074289]
[1762178526404,4.84184854,176.35,176.29,4.84184854]
[1762178526594,0.7,176.36,176.3,4.84184854]
[1762178527014,0.7,176.36,176.31,4.84184854]
[1762178527211,5.54184854,176.36,176.31,5.67182803]
[1762178527435,0.7,176.35,176.28,20.592]
[1762178527608,4.84184854,176.31,176.23,0.5]
[1762178527795,4.84184854,176.31,176.25,25.43384854]
[1762178527994,5.54184854,176.32,176.26,4.84184854]
[1762178528212,0.7,176.32,176.26,4.84184854]